fUST/lending_fUST_20260415
["ID","MTS","AMOUNT","RATE_DAILY","PERIOD"]
[420514978,1776205841879,-154.88994115,9.771e-05,2]
[420514979,1776205841894,-368.65556914,9.8e-05,2]
[420514980,1776205841905,-455.3796735,9.801e-05,2]
[420514981,1776205841919,-1500.0,9.823e-05,2]
[420514982,1776205841932,-1500.0,9.823e-05,2]
[420514983,1776205841946,-173.8711502,9.824e-05,2]
[420514984,1776205841958,-557.5788265,9.83e-05,2]
[420514985,1776205841974,-2230.315306,9.83e-05,2]
[420514986,1776205841985,-271.01730766,9.926e-05,2]
[420514987,1776205841998,-431.37215,9.931e-05,2]
[420514988,1776205842014,-230.2716,0.0001,2]
[420514989,1776205842026,-40000.0,0.0001,2]
[420514990,1776205842039,-500.0,0.0001,2]
[420514991,1776205842058,-27485.0,0.0001,2]
[420514992,1776205842068,-20272.31359928,0.0001,5]
[420514993,1776205842085,-3922.56365011,0.0001,2]
[420514994,1776205842104,-388.72605772,0.0001,2]
[420514995,1776205842113,-353.35864126,0.0001,2]
[420514996,1776205842135,-152.0,0.00010034,7]
[420514997,1776205842145,-152.0,0.00010034,7]
[420514998,1776205842159,-152.0,0.00010034,7]
[420514999,1776205842181,-791.6710654,0.00010065,2]
[420515000,1776205842190,-500.0,0.00010148,2]
[420515001,1776205842219,-500.0,0.00010148,2]
[420515004,1776205842363,-271.01730766,0.000102,2]
[420515006,1776205842377,-431.37215,0.00010302,2]
[420515008,1776205842394,-1000.0,0.00010315,2]
[420515011,1776205842408,-176.6456916,0.00010318,2]
[420515012,1776205842425,-369.47901896,0.00010365,2]
[420515013,1776205842444,-664.6220192,0.00010365,2]
[420515014,1776205842461,-2000.0,0.00010371,2]
[420515015,1776205842473,-578.20924308,0.00010378,2]
[420515016,1776205842494,-2312.83697232,0.00010378,2]
[420515017,1776205842513,-1098.58795195,0.00010384,2]
[420515018,1776205842530,-262.31007143,0.000104,2]
[420515020,1776205842541,-225.84775638,0.00010528,2]
[420515022,1776205842562,-160.83180958,0.00010633,2]
[420515024,1776205842584,-325.1735551,0.00010645,2]
[420515026,1776205842604,-168.3888056,0.00010651,2]
[420515028,1776205842629,-431.37215,0.00010673,2]
[420515030,1776205842649,-3370.761186,0.00010682,2]
[420515032,1776205842675,-169.27,0.00010685,2]
[420515033,1776205842694,-169.27,0.00010685,2]
[420515034,1776205842715,-169.27,0.00010685,2]
[420515035,1776205842729,-169.27,0.00010685,2]
[420515036,1776205842750,-214.581308,0.00010685,2]
[420515037,1776205842763,-525.12411808,0.00010695,2]
[420515038,1776205842774,-1000.0,0.00010695,2]
[420515040,1776205842794,-3759.977096,0.00010739,2]
[420515041,1776205842803,-155.0,0.00010747,2]
[420515043,1776205842815,-1477.91607584,0.00010749,2]
[420515045,1776205842835,-400.0,0.000108,3]
[420515047,1776205842845,-600.0,0.000108,2]
[420515049,1776205842857,-14828.39428683,0.000109,4]
[420515051,1776205842873,-2500.0,0.00010918,2]
[420515053,1776205842891,-503.65515858,0.00010926,2]
[420515054,1776205842906,-2398.4119403,0.00010926,2]
[420515055,1776205842928,-1230.4152,0.00010958,2]
[420515056,1776205842940,-12561.659797,0.00010958,2]
[420515057,1776205842955,-452.52489056,0.00010958,2]
[420515058,1776205842967,-500.0,0.00010958,2]
[420515059,1776205842982,-500.0,0.00010958,2]
[420515060,1776205842994,-500.0,0.00010958,2]
[420515061,1776205843009,-500.0,0.00010958,2]
[420515063,1776205843024,-500.0,0.00010958,2]
[420515065,1776205843034,-500.0,0.00010958,2]
[420515067,1776205843047,-500.0,0.00010958,2]
[420515069,1776205843062,-615.06248611,0.00010958,2]
[420515070,1776205843080,-501.29880181,0.00010958,2]
[420515071,1776205843092,-511.16531877,0.00010958,2]
[420515072,1776205843105,-500.0,0.00010958,2]
[420515074,1776205843117,-515.7489057,0.00010958,2]
[420515076,1776205843127,-500.0,0.00010958,2]
[420515077,1776205843142,-500.0,0.00010958,2]
[420515078,1776205843154,-500.0,0.00010958,2]
[420515080,1776205843164,-500.0,0.00010958,2]
[420515082,1776205843177,-500.0,0.00010958,2]
[420515084,1776205843189,-500.0,0.00010958,2]
[420515086,1776205843201,-500.0,0.00010958,2]
[420515088,1776205843210,-500.0,0.00010958,2]
[420515090,1776205843222,-500.0,0.00010958,2]
[420515092,1776205843237,-500.0,0.00010958,2]
[420515094,1776205843250,-500.0,0.00010958,2]
[420515096,1776205843264,-500.0,0.00010958,2]
[420515098,1776205843280,-500.0,0.00010958,2]
[420515100,1776205843290,-500.0,0.00010958,2]
[420515102,1776205843301,-500.0,0.00010958,2]
[420515104,1776205843322,-500.0,0.00010958,2]
[420515106,1776205843336,-500.0,0.00010958,2]
[420515108,1776205843350,-500.0,0.00010958,2]
[420515110,1776205843373,-500.0,0.00010958,2]
[420515112,1776205843388,-500.0,0.00010958,2]
[420515114,1776205843411,-500.0,0.00010958,2]
[420515116,1776205843427,-500.0,0.00010958,2]
[420515118,1776205843453,-500.0,0.00010958,2]
[420515120,1776205843471,-500.0,0.00010958,2]
[420515122,1776205843495,-500.0,0.00010958,2]
[420515124,1776205843521,-500.0,0.00010958,2]
[420515126,1776205843571,-686.61,0.00010958,2]
[420515128,1776205843629,-500.0,0.00010958,2]
[420515130,1776205843658,-508.84839959,0.00010958,2]
[420515132,1776205843681,-762.0238,0.00010958,2]
[420515133,1776205843694,-500.0,0.00010958,2]
[420515136,1776205843706,-500.0,0.00010958,2]
[420515137,1776205843723,-500.0,0.00010958,2]
[420515139,1776205843736,-500.0,0.00010958,2]
[420515141,1776205843746,-500.0,0.00010958,2]
[420515143,1776205843760,-500.0,0.00010958,2]
[420515145,1776205843771,-500.0,0.00010958,2]
[420515147,1776205843782,-500.0,0.00010958,2]
[420515148,1776205843793,-1000.0,0.00010958,2]
[420515151,1776205843805,-1032.06,0.00010958,2]
[420515153,1776205843818,-500.0,0.00010958,2]
[420515154,1776205843829,-500.77896907,0.00010958,2]
[420515156,1776205843838,-500.0,0.00010958,2]
[420515158,1776205843850,-500.0,0.00010958,2]
[420515161,1776205843863,-500.0,0.00010958,2]
[420515164,1776205843872,-500.0,0.00010958,2]
[420515166,1776205843883,-500.68270351,0.00010958,2]
[420515168,1776205843893,-500.0,0.00010958,2]
[420515170,1776205843908,-1070.03,0.00010958,2]
[420515172,1776205843918,-500.0,0.00010958,2]
[420515174,1776205843928,-505.51631358,0.00010958,2]
[420515176,1776205843939,-489.90615402,0.00010958,2]
[420515178,1776205843953,-577.18940498,0.00010958,2]
[420515180,1776205843963,-500.0,0.00010958,2]
[420515182,1776205843973,-500.63274299,0.00010958,2]
[420515184,1776205843982,-528.42,0.00010958,2]
[420515186,1776205843992,-500.0,0.00010958,2]
[420515188,1776205844003,-500.0,0.00010958,2]
[420515190,1776205844013,-500.0,0.00010958,2]
[420515192,1776205844022,-3052.44,0.00010958,2]
[420515194,1776205844033,-1029.86,0.00010958,2]
[420515196,1776205844042,-502.44324979,0.00010958,2]
[420515198,1776205844052,-500.0,0.00010958,2]
[420515199,1776205844062,-500.0,0.00010958,2]
[420515200,1776205844071,-500.84097635,0.00010958,2]
[420515201,1776205844081,-551.72,0.00010958,2]
[420515203,1776205844090,-500.0,0.00010958,2]
[420515205,1776205844100,-4690.15,0.00010958,2]
[420515207,1776205844110,-500.0,0.00010958,2]
[420515209,1776205844119,-500.0,0.00010958,2]
[420515211,1776205844128,-500.0,0.00010958,2]
[420515213,1776205844138,-500.0,0.00010958,2]
[420515215,1776205844148,-500.0,0.00010958,2]
[420515217,1776205844157,-500.0,0.00010958,2]
[420515219,1776205844167,-500.67666775,0.00010958,2]
[420515221,1776205844177,-500.0,0.00010958,2]
[420515222,1776205844186,-500.0,0.00010958,2]
[420515224,1776205844196,-500.55144716,0.00010958,2]
[420515226,1776205844205,-500.0,0.00010958,2]
[420515228,1776205844214,-500.0,0.00010958,2]
[420515230,1776205844225,-558.57748637,0.00010958,2]
[420515232,1776205844235,-525.59359707,0.00010958,2]
[420515234,1776205844245,-490.0,0.00010958,2]
[420515236,1776205844254,-500.0,0.00010958,2]
[420515238,1776205844263,-500.0,0.00010958,2]
[420515240,1776205844275,-500.0,0.00010958,2]
[420515242,1776205844284,-500.0,0.00010958,2]
[420515244,1776205844293,-500.0,0.00010958,2]
[420515246,1776205844303,-631.37503037,0.00010958,2]
[420515248,1776205844316,-500.0,0.00010958,2]
[420515249,1776205844324,-500.0,0.00010958,2]
[420515251,1776205844334,-635.02315964,0.00010958,2]
[420515253,1776205844343,-2600.23,0.00010958,2]
[420515255,1776205844356,-500.85064786,0.00010958,2]
[420515257,1776205844365,-500.0,0.00010958,2]
[420515259,1776205844374,-500.0,0.00010958,2]
[420515261,1776205844383,-500.0,0.00010958,2]
[420515263,1776205844393,-500.0,0.00010958,2]
[420515265,1776205844406,-500.0,0.00010958,2]
[420515267,1776205844417,-500.0,0.00010958,2]
[420515269,1776205844426,-500.0,0.00010958,2]
[420515271,1776205844435,-3661.51,0.00010958,2]
[420515273,1776205844447,-1726.28,0.00010958,2]
[420515275,1776205844461,-5613.67,0.00010958,2]
[420515277,1776205844470,-500.0,0.00010958,2]
[420515279,1776205844481,-500.0,0.00010958,2]
[420515280,1776205844501,-523.22778256,0.00010958,2]
[420515283,1776205844511,-507.74114023,0.00010958,2]
[420515285,1776205844522,-500.0,0.00010958,2]
[420515287,1776205844540,-500.0,0.00010958,2]
[420515288,1776205844551,-500.0,0.00010958,2]
[420515290,1776205844562,-500.0,0.00010958,2]
[420515292,1776205844574,-500.0,0.00010958,2]
[420515294,1776205844614,-2497.59,0.00010958,2]
[420515296,1776205844701,-500.0,0.00010958,2]
[420515298,1776205844884,-500.0,0.00010958,2]
[420515300,1776205845056,-500.0,0.00010958,2]
[420515302,1776205845103,-500.0,0.00010958,2]
[420515305,1776205845127,-557.6,0.00010958,2]
[420515306,1776205845138,-500.0,0.00010958,2]
[420515308,1776205845164,-500.0,0.00010958,2]
[420515310,1776205845180,-878.59,0.00010958,2]
[420515312,1776205845192,-500.0,0.00010958,2]
[420515314,1776205845224,-5852.95,0.00010958,2]
[420515316,1776205845235,-500.0,0.00010958,2]
[420515318,1776205845255,-2419.11,0.00010958,2]
[420515319,1776205845273,-4173.56,0.00010958,2]
[420515321,1776205845290,-453.98367162,0.00010958,2]
[420515323,1776205845321,-4080.19,0.00010958,2]
[420515325,1776205845340,-857.52,0.00010958,2]
[420515326,1776205845359,-5331.77,0.00010958,2]
[420515327,1776205845370,-4339.29,0.00010958,2]
[420515328,1776205845395,-500.0,0.00010958,2]
[420515330,1776205845407,-500.0,0.00010958,2]
[420515331,1776205845422,-4685.82,0.00010958,2]
[420515332,1776205845438,-507.02842082,0.00010958,2]
[420515333,1776205845451,-500.0,0.00010958,2]
[420515334,1776205845464,-510.85,0.00010958,2]
[420515335,1776205845481,-518.07,0.00010958,2]
[420515336,1776205845495,-516.46,0.00010958,2]
[420515338,1776205845505,-856.63,0.00010958,2]
[420515340,1776205845514,-500.0,0.00010958,2]
[420515342,1776205845524,-503.44,0.00010958,2]
[420515343,1776205845537,-619.24,0.00010958,2]
[420515345,1776205845548,-216.33511177,0.00010958,2]
[420515346,1776205845558,-500.0,0.00010958,2]
[420515347,1776205845567,-500.0,0.00010958,2]
[420515348,1776205845580,-3812.35,0.00010958,2]
[420515349,1776205845590,-500.0,0.00010958,2]
[420515350,1776205845599,-500.0,0.00010958,2]
[420515351,1776205845609,-500.0,0.00010958,2]
[420515353,1776205845621,-500.0,0.00010958,2]
[420515355,1776205845630,-3587.81,0.00010958,2]
[420515357,1776205845639,-500.0,0.00010958,2]
[420515358,1776205845648,-500.0,0.00010958,2]
[420515359,1776205845659,-500.0,0.00010958,2]
[420515360,1776205845668,-500.0,0.00010958,2]
[420515361,1776205845678,-608.32,0.00010958,2]
[420515362,1776205845687,-500.0,0.00010958,2]
[420515363,1776205845696,-652.35,0.00010958,2]
[420515364,1776205845707,-1059.75,0.00010958,2]
[420515365,1776205845718,-9075.64,0.00010958,2]
[420515366,1776205845728,-5289.36,0.00010958,2]
[420515367,1776205845740,-4155.86,0.00010958,2]
[420515368,1776205845751,-500.0,0.00010958,2]
[420515369,1776205845762,-500.0,0.00010958,2]
[420515370,1776205845773,-500.0,0.00010958,2]
[420515371,1776205845786,-2410.26,0.00010958,2]
[420515372,1776205845798,-278.39625567,0.00010958,2]
[420515373,1776205845813,-633.03,0.00010958,2]
[420515374,1776205845830,-500.0,0.00010958,2]
[420515375,1776205845842,-824.2,0.00010958,2]
[420515376,1776205845859,-20300.29,0.00010958,2]
[420515377,1776205845875,-500.0,0.00010958,2]
[420515378,1776205845888,-4685.34,0.00010958,2]
[420515379,1776205845908,-737.25,0.00010958,2]
[420515380,1776205845929,-5374.3,0.00010958,2]
[420515381,1776205845967,-500.0,0.00010958,2]
[420515382,1776205846013,-500.0,0.00010958,2]
[420515383,1776205846101,-500.0,0.00010958,2]
[420515384,1776205846213,-13873.87,0.00010958,2]
[420515385,1776205846304,-3211.02,0.00010958,2]
[420515386,1776205846358,-500.0,0.00010958,2]
[420515387,1776205846376,-626.61,0.00010958,2]
[420515388,1776205846407,-783.63,0.00010958,2]
[420515389,1776205846446,-6585.9,0.00010958,2]
[420515390,1776205846463,-500.60891618,0.00010958,2]
[420515391,1776205846488,-508.28236351,0.00010958,2]
[420515392,1776205846498,-500.0,0.00010958,2]
[420515393,1776205846512,-2271.66,0.00010958,2]
[420515394,1776205846534,-500.0,0.00010958,2]
[420515395,1776205846543,-500.0,0.00010958,2]
[420515396,1776205846555,-10416.62,0.00010958,2]
[420515397,1776205846572,-500.0,0.00010958,2]
[420515398,1776205846583,-4313.27,0.00010958,2]
[420515399,1776205846593,-823.23,0.00010958,2]
[420515400,1776205846602,-500.0,0.00010958,2]
[420515401,1776205846620,-154.0,0.00010959,2]
[420515402,1776205846630,-154.0,0.00010959,2]
[420515403,1776205846639,-295.30362048,0.00010959,2]
[420515404,1776205846649,-15380.3736,0.00010959,2]
[420515405,1776205846666,-681.9610463,0.00010959,2]
[420515406,1776205846675,-681.9610463,0.00010959,2]
[420515407,1776205846685,-681.9610463,0.00010959,2]
[420515408,1776205846696,-681.9610463,0.00010959,2]
[420515409,1776205846711,-681.9610463,0.00010959,2]
[420515410,1776205846720,-681.9610463,0.00010959,2]
[420515411,1776205846730,-681.9610463,0.00010959,2]
[420515412,1776205846742,-681.9610463,0.00010959,2]
[420515413,1776205846755,-681.9610463,0.00010959,2]
[420515414,1776205846765,-681.9610463,0.00010959,2]
[420515415,1776205846774,-681.9610463,0.00010959,2]
[420515416,1776205846785,-681.9610463,0.00010959,2]
[420515417,1776205846796,-681.9610463,0.00010959,2]
[420515419,1776205846805,-681.9610463,0.00010959,2]
[420515420,1776205846814,-681.9610463,0.00010959,2]
[420515421,1776205846824,-681.9610463,0.00010959,2]
[420515423,1776205846833,-681.9610463,0.00010959,2]
[420515425,1776205846845,-500.0,0.00010959,2]
[420515438,1776205846976,-500.0,0.00010959,2]
[420515440,1776205846987,-502.17482249,0.00010959,2]
[420515442,1776205846996,-733.10812477,0.00010959,2]
[420515444,1776205847005,-733.10812477,0.00010959,2]
[420515446,1776205847014,-733.10812477,0.00010959,2]
[420515448,1776205847025,-733.10812477,0.00010959,2]
[420515450,1776205847036,-733.10812477,0.00010959,2]
[420515452,1776205847045,-733.10812477,0.00010959,2]
[420515454,1776205847054,-733.10812477,0.00010959,2]
[420515455,1776205847066,-733.10812477,0.00010959,2]
[420515458,1776205847077,-733.10812477,0.00010959,2]
[420515459,1776205847086,-925.84461562,0.00010959,2]
[420515461,1776205847095,-925.84461562,0.00010959,2]
[420515463,1776205847108,-500.0,0.00010973,2]
[420515465,1776205847119,-151.0,0.00011,2]
[420515467,1776205847129,-151.0,0.00011,2]
[420515469,1776205847138,-1901.44,0.00011071,2]
[420515471,1776205847153,-151.0,0.000111,2]
[420515473,1776205847162,-151.0,0.000111,2]
[420515475,1776205847172,-151.0,0.000111,2]
[420515477,1776205847182,-151.0,0.000111,2]
[420515479,1776205847196,-151.0,0.000111,2]
[420515481,1776205847208,-151.0,0.000111,2]
[420515483,1776205847218,-334.57948801,0.00011112,2]
[420515485,1776205847231,-3321.98585947,0.00011133,2]
[420515486,1776205847241,-2655.82958871,0.00011133,2]
[420515488,1776205847253,-500.0,0.00011192,2]
[420515490,1776205847262,-151.0,0.000112,2]
[420515491,1776205847275,-151.0,0.000112,2]
[420515492,1776205847286,-151.0,0.000112,2]
[420515493,1776205847297,-151.0,0.000112,2]
[420515494,1776205847307,-151.0,0.000112,2]
[420515495,1776205847323,-1335.6901,0.00011232,2]
[420515496,1776205847334,-500.0,0.00011232,2]
[420515497,1776205847348,-500.0,0.00011232,2]
[420515498,1776205847363,-500.0,0.00011232,2]
[420515499,1776205847380,-500.0,0.00011232,2]
[420515500,1776205847392,-500.0,0.00011232,2]
[420515501,1776205847411,-500.0,0.00011232,2]
[420515502,1776205847430,-500.0,0.00011232,2]
[420515503,1776205847441,-500.0,0.00011232,2]
[420515504,1776205847462,-686.61,0.00011232,2]
[420515505,1776205847481,-656.7489,0.00011232,2]
[420515506,1776205847501,-500.0,0.00011232,2]
[420515507,1776205847519,-500.0,0.00011232,2]
[420515508,1776205847538,-500.0,0.00011232,2]
[420515509,1776205847564,-552.89487883,0.00011232,2]
[420515510,1776205847582,-500.0,0.00011232,2]
[420515511,1776205847619,-500.0,0.00011232,2]
[420515512,1776205847640,-500.91489503,0.00011232,2]
[420515513,1776205847676,-761.53702131,0.00011232,2]
[420515514,1776205847706,-1032.06,0.00011232,2]
[420515515,1776205847730,-500.0,0.00011232,2]
[420515516,1776205847743,-500.0,0.00011232,2]
[420515517,1776205847770,-500.0,0.00011232,2]
[420515518,1776205847782,-500.0,0.00011232,2]
[420515519,1776205847811,-500.0,0.00011232,2]
[420515520,1776205847824,-1070.03,0.00011232,2]
[420515521,1776205847850,-500.0,0.00011232,2]
[420515522,1776205847862,-500.0,0.00011232,2]
[420515523,1776205847872,-528.42,0.00011232,2]
[420515524,1776205847887,-500.0,0.00011232,2]
[420515525,1776205847903,-3052.44,0.00011232,2]
[420515526,1776205847914,-1029.86,0.00011232,2]
[420515527,1776205847923,-500.0,0.00011232,2]
[420515528,1776205847935,-551.72,0.00011232,2]
[420515529,1776205847947,-501.74118153,0.00011232,2]
[420515530,1776205847958,-4690.15,0.00011232,2]
[420515531,1776205847968,-500.0,0.00011232,2]
[420515532,1776205847980,-500.0,0.00011232,2]
[420515533,1776205847991,-500.0,0.00011232,2]
[420515534,1776205848002,-500.0,0.00011232,2]
[420515535,1776205848011,-500.0,0.00011232,2]
[420515536,1776205848024,-508.91499492,0.00011232,2]
[420515537,1776205848034,-500.0,0.00011232,2]
[420515538,1776205848045,-503.81202754,0.00011232,2]
[420515539,1776205848055,-500.0,0.00011232,2]
[420515540,1776205848064,-500.0,0.00011232,2]
[420515541,1776205848073,-500.0,0.00011232,2]
[420515542,1776205848085,-500.0,0.00011232,2]
[420515543,1776205848095,-500.0,0.00011232,2]
[420515544,1776205848104,-500.0,0.00011232,2]
[420515545,1776205848113,-500.0,0.00011232,2]
[420515546,1776205848122,-500.0,0.00011232,2]
[420515547,1776205848135,-2600.23,0.00011232,2]
[420515548,1776205848144,-500.0,0.00011232,2]
[420515549,1776205848153,-500.0,0.00011232,2]
[420515550,1776205848162,-500.0,0.00011232,2]
[420515551,1776205848175,-500.55424306,0.00011232,2]
[420515552,1776205848184,-500.0,0.00011232,2]
[420515553,1776205848192,-500.0,0.00011232,2]
[420515554,1776205848202,-3661.51,0.00011232,2]
[420515555,1776205848211,-1726.28,0.00011232,2]
[420515556,1776205848221,-5613.67,0.00011232,2]
[420515557,1776205848230,-500.0,0.00011232,2]
[420515558,1776205848239,-500.0,0.00011232,2]
[420515559,1776205848248,-500.0,0.00011232,2]
[420515560,1776205848257,-500.0,0.00011232,2]
[420515561,1776205848266,-500.0,0.00011232,2]
[420515562,1776205848275,-500.0,0.00011232,2]
[420515563,1776205848284,-500.0,0.00011232,2]
[420515564,1776205848292,-2497.59,0.00011232,2]
[420515565,1776205848301,-500.0,0.00011232,2]
[420515566,1776205848311,-581.05932271,0.00011232,2]
[420515567,1776205848320,-500.0,0.00011232,2]
[420515568,1776205848329,-236.65015881,0.00011232,2]
[420515569,1776205848339,-557.6,0.00011232,2]
[420515570,1776205848349,-500.0,0.00011232,2]
[420515571,1776205848357,-500.0,0.00011232,2]
[420515572,1776205848364,-878.59,0.00011232,2]
[420515573,1776205848371,-5852.95,0.00011232,2]
[420515574,1776205848379,-500.0,0.00011232,2]
[420515575,1776205848387,-2419.11,0.00011232,2]
[420515576,1776205848399,-4173.56,0.00011232,2]
[420515577,1776205848410,-4080.19,0.00011232,2]
[420515578,1776205848420,-857.52,0.00011232,2]
[420515579,1776205848431,-5331.77,0.00011232,2]
[420515580,1776205848442,-4339.29,0.00011232,2]
[420515581,1776205848452,-500.0,0.00011232,2]
[420515582,1776205848462,-505.81009847,0.00011232,2]
[420515583,1776205848474,-4685.82,0.00011232,2]
[420515584,1776205848488,-500.0,0.00011232,2]
[420515585,1776205848498,-510.85,0.00011232,2]
[420515586,1776205848507,-518.07,0.00011232,2]
[420515587,1776205848525,-516.46,0.00011232,2]
[420515588,1776205848535,-856.63,0.00011232,2]
[420515589,1776205848550,-503.44,0.00011232,2]
[420515590,1776205848563,-619.24,0.00011232,2]
[420515591,1776205848575,-500.0,0.00011232,2]
[420515592,1776205848592,-500.0,0.00011232,2]
[420515593,1776205848607,-3812.35,0.00011232,2]
[420515594,1776205848624,-500.0,0.00011232,2]
[420515595,1776205848642,-500.0,0.00011232,2]
[420515596,1776205848657,-3587.81,0.00011232,2]
[420515597,1776205848672,-500.0,0.00011232,2]
[420515598,1776205848688,-500.0,0.00011232,2]
[420515599,1776205848705,-500.0,0.00011232,2]
[420515600,1776205848727,-500.0,0.00011232,2]
[420515601,1776205848736,-608.32,0.00011232,2]
[420515602,1776205848754,-652.35,0.00011232,2]
[420515603,1776205848771,-1059.75,0.00011232,2]
[420515604,1776205848780,-9075.64,0.00011232,2]
[420515605,1776205848795,-5289.36,0.00011232,2]
[420515606,1776205848811,-4155.86,0.00011232,2]
[420515607,1776205848822,-500.0,0.00011232,2]
[420515608,1776205848839,-2410.26,0.00011232,2]
[420515609,1776205848859,-633.03,0.00011232,2]
[420515610,1776205848869,-500.0,0.00011232,2]
[420515611,1776205848883,-824.2,0.00011232,2]
[420515612,1776205848899,-20300.29,0.00011232,2]
[420515613,1776205848913,-500.0,0.00011232,2]
[420515614,1776205848934,-4685.34,0.00011232,2]
[420515615,1776205848949,-737.25,0.00011232,2]
[420515616,1776205848961,-5374.3,0.00011232,2]
[420515617,1776205848988,-500.0,0.00011232,2]
[420515618,1776205849003,-13873.87,0.00011232,2]
[420515619,1776205849029,-3211.02,0.00011232,2]
[420515620,1776205849049,-500.0,0.00011232,2]
[420515621,1776205849087,-626.61,0.00011232,2]
[420515622,1776205849101,-783.63,0.00011232,2]
[420515623,1776205849145,-6585.9,0.00011232,2]
[420515624,1776205849180,-541.88423068,0.00011232,2]
[420515625,1776205849200,-2271.66,0.00011232,2]
[420515626,1776205849224,-500.0,0.00011232,2]
[420515627,1776205849234,-500.0,0.00011232,2]
[420515628,1776205849258,-10416.62,0.00011232,2]
[420515629,1776205849276,-510.70586202,0.00011232,2]
[420515630,1776205849285,-4313.27,0.00011232,2]
[420515631,1776205849323,-823.23,0.00011232,2]
[420515632,1776205849359,-500.79516122,0.00011232,2]
[420515633,1776205849368,-1003.30609004,0.00011243,2]
[420515634,1776205849388,-151.0,0.000113,2]
[420515635,1776205849404,-151.0,0.000113,2]
[420515636,1776205849416,-1000.0,0.00011347,2]
[420515637,1776205849430,-244.0,0.00011347,2]
[420515638,1776205849444,-151.0,0.000114,2]
[420515639,1776205849453,-151.0,0.000114,2]
[420515640,1776205849467,-151.0,0.000114,2]
[420515641,1776205849478,-151.0,0.000114,2]
[420515642,1776205849491,-3000.0,0.00011466,2]
[420515643,1776205849504,-2487.15318209,0.00011474,2]
[420515644,1776205849513,-151.0,0.000115,2]
[420515645,1776205849528,-151.0,0.000115,2]
[420515646,1776205849537,-1335.6901,0.00011506,2]
[420515647,1776205849550,-500.0,0.00011506,2]
[420515648,1776205849560,-386.96119986,0.00011506,2]
[420515649,1776205849573,-500.0,0.00011506,2]
[420515650,1776205849582,-500.0,0.00011506,2]
[420515651,1776205849594,-500.0,0.00011506,2]
[420515652,1776205849604,-500.0,0.00011506,2]
[420515653,1776205849613,-510.94667618,0.00011506,2]
[420515654,1776205849622,-500.0,0.00011506,2]
[420515655,1776205849636,-686.61,0.00011506,2]
[420515656,1776205849646,-656.7489,0.00011506,2]
[420515657,1776205849655,-500.0,0.00011506,2]
[420515658,1776205849664,-608.14142783,0.00011506,2]
[420515659,1776205849674,-500.0,0.00011506,2]
[420515660,1776205849685,-500.0,0.00011506,2]
[420515661,1776205849694,-438.2537917,0.00011506,2]
[420515662,1776205849703,-1032.06,0.00011506,2]
[420515663,1776205849712,-500.0,0.00011506,2]
[420515664,1776205849722,-500.0,0.00011506,2]
[420515665,1776205849731,-500.0,0.00011506,2]
[420515666,1776205849740,-566.12553661,0.00011506,2]
[420515667,1776205849749,-500.0,0.00011506,2]
[420515668,1776205849758,-1070.03,0.00011506,2]
[420515669,1776205849767,-500.0,0.00011506,2]
[420515670,1776205849776,-500.0,0.00011506,2]
[420515671,1776205849785,-528.42,0.00011506,2]